bitfinex-derivatives/quotes_SOLF0:USTF0_20260102
["timestamp","ask_amount","ask_price","bid_price","bid_amount"]
[1767312002755,0.05583678,126.96,126.94,14.6118916]
[1767312002957,14.77474836,127.12,126.95,2.34107617]
[1767312003156,14.77474836,127.11,126.96,12.06676649]
[1767312003457,2.41670382,127.11,126.96,2.34107617]
[1767312004152,14.77474836,127.12,126.97,9.43817617]
[1767312004153,2.41670382,127.04,126.97,9.43817617]
[1767312004350,2.41670382,127.04,126.98,2.34107617]
[1767312005049,0.0596609,127.02,127.0,0.0546674]
[1767312005244,2.47636472,127.02,127.0,0.0546674]
[1767312005454,2.47636472,127.02,126.96,2.34107617]
[1767312006348,2.47636472,127.02,126.98,0.05117221]
[1767312006743,0.0596609,127.02,126.98,9.48874838]
[1767312006950,0.0596609,127.02,126.99,2.34107617]
[1767312011057,2.41670382,127.06,126.99,2.34107617]
[1767312012154,2.41670382,127.06,126.94,33.40569032]
[1767312012155,0.05422374,127.04,127.01,0.05779249]
[1767312012355,2.46662885,127.04,127.01,0.05779249]
[1767312013356,0.04992503,127.04,127.01,0.05779249]
[1767312013549,0.04992503,127.04,127.01,2.39886866]
[1767312015864,2.41670382,127.08,127.01,2.39886866]
[1767312016160,2.41670382,127.07,126.97,2.34107617]
[1767312016763,0.05856953,127.03,127.01,0.05765153]
[1767312016961,0.05821852,127.03,127.01,0.05166925]
[1767312018959,2.47492234,127.03,126.97,2.34107617]
[1767312019163,2.47492234,127.03,126.95,2.34107617]
[1767312019459,2.41670382,127.01,126.95,2.34107617]
[1767312020058,0.05581358,126.99,126.97,0.0529527]
[1767312020659,0.05581358,126.99,126.97,2.39402887]
[1767312020859,2.41670382,127.1,126.97,2.39402887]
[1767312021160,2.41670382,127.1,126.97,2.34107617]
[1767312021761,2.47074262,127.05,127.02,0.05139761]
[1767312021970,2.47426414,127.05,127.02,0.05409652]
[1767312025056,2.33934222,127.04,126.96,2.24232441]
[1767312025862,2.33934222,127.03,126.96,2.24232441]
[1767312026063,0.05264006,127.01,126.99,0.05185578]
[1767312029271,2.33934222,127.06,126.99,2.29418019]
[1767312029472,2.33934222,127.06,126.99,2.24232441]
[1767312030373,2.33934222,127.06,126.96,7.0975]
[1767312030374,2.39153475,127.04,127.01,0.05182637]
[1767312033174,2.39153475,127.04,126.91,234.31783825]
[1767312033175,2.39153475,127.04,126.91,92.08699236]
[1767312033473,2.33934222,127.04,126.91,92.08699236]
[1767312033673,2.33934222,127.04,126.91,77.47510076]
[1767312033866,2.33934222,127.04,126.95,7.098]
[1767312034063,0.05537911,127.01,126.91,92.08699236]
[1767312034273,9.43134222,127.07,126.91,92.08699236]
[1767312034470,9.43134222,127.07,126.97,7.0971]
[1767312035169,0.05191237,127.03,127.01,0.05547122]
[1767312035473,9.43034222,127.09,127.01,2.29779563]
[1767312035777,9.43034222,127.09,127.01,2.24232441]
[1767312035778,2.33934222,127.08,127.01,2.24232441]
[1767312036573,2.33934222,127.08,126.99,7.0959]
[1767312036574,0.0557265,127.06,127.03,2.30134216]
[1767312036972,0.0557265,127.06,127.03,0.05901775]
[1767312048788,9.42904222,127.11,127.03,2.30134216]
[1767312048984,2.33934222,127.1,127.03,2.24232441]
[1767312049879,0.0565914,127.08,127.05,0.05426421]
[1767312058997,2.44631896,127.08,127.05,0.05426421]
[1767312063311,0.0565914,127.08,127.05,0.05426421]
[1767312068409,2.44631896,127.08,127.05,0.05426421]
[1767312069203,0.0565914,127.08,127.05,0.05426421]
[1767312071810,0.0565914,127.08,127.05,2.53350853]
[1767312072010,147.32354923,127.12,127.05,2.53350853]
[1767312073122,0.05680258,127.1,127.05,2.53350853]
[1767312076020,0.05680258,127.1,127.05,9.62620853]
[1767312076323,94.78972756,127.14,127.06,2.45269276]
[1767312076713,2.38972756,127.14,127.06,2.45269276]
[1767312076914,94.78972756,127.14,127.06,2.45269276]
[1767312077218,0.0572882,127.11,127.09,0.04966989]
[1767312080321,2.38972756,127.13,127.09,0.04966989]
[1767312081521,0.05253865,127.12,127.09,0.04966989]
[1767312093326,0.05253865,127.12,127.09,2.45763524]
[1767312093722,2.49374219,127.15,127.09,2.45763524]
[1767312094226,2.49374219,127.16,127.09,2.45763524]
[1767312094427,2.49374219,127.16,127.09,2.40796535]
[1767312094829,0.04977749,127.14,127.11,0.05202635]
[1767312096425,0.04977749,127.14,127.11,2.4096164]
[1767312099638,2.49374219,127.18,127.11,2.4096164]
[1767312100535,0.04966539,127.16,127.11,2.4096164]
[1767312104431,2.45928936,127.16,127.11,2.4096164]
[1767312105038,2.40962397,127.14,127.11,0.05202635]
[1767312105340,4.90336616,127.14,127.11,0.05202635]
[1767312109448,0.04966539,127.16,127.11,2.36954019]
[1767312112460,4.95303155,127.16,127.11,0.05202635]
[1767312112758,2.49374219,127.13,127.08,2.31964704]
[1767312113158,2.49374219,127.16,127.09,2.37248081]
[1767312113952,0.05527886,127.14,127.11,0.05075542]
[1767312115756,0.05527886,127.14,127.11,2.42719732]
[1767312115952,0.05527886,127.14,127.11,0.05075542]
[1767312116160,0.05527886,127.14,127.09,2.3764419]
[1767312117067,0.05527886,127.14,127.1,0.05244385]
[1767312123372,0.05527886,127.14,127.1,2.43062693]
[1767312123864,2.40962397,127.18,127.11,7.0893]
[1767312124065,2.40962397,127.18,127.12,2.37818308]
[1767312124567,4.90453251,127.16,127.1,12.05403071]
[1767312124775,4.90453251,127.16,127.1,2.37786501]
[1767312124968,0.05637625,127.14,127.12,0.05357659]
[1767312141491,2.55128479,127.14,127.08,2.37322541]
[1767312142483,2.55128479,127.14,127.1,0.0505396]
[1767312152494,4.09387394,127.14,127.1,0.0505396]
[1767312153394,2.43486897,127.13,127.1,0.0505396]
[1767312154691,1.5989654,127.14,127.1,0.0505396]
[1767312154895,2.49124522,127.14,127.1,0.0505396]
[1767312158594,2.49124522,127.14,127.03,92.8]
[1767312158595,2.43486897,127.1,127.05,9.6761657]
[1767312158898,2.43486897,127.1,127.03,11.97416265]
[1767312159092,2.43486897,127.1,127.03,2.29799695]
[1767312159700,0.04982881,127.08,127.05,0.05828569]
[1767312160903,2.48469778,127.08,127.05,0.05828569]
[1767312164204,4.02728693,127.08,127.05,0.05828569]
[1767312164505,2.43486897,127.07,127.05,0.05828569]
[1767312164695,2.43486897,127.07,127.01,9.39289695]
[1767312165299,2.43486897,127.07,127.02,2.29799695]
[1767312165706,0.05313948,127.06,127.03,0.06010794]
[1767312173913,2.52992646,127.06,127.03,0.06010794]
[1767312175507,1.54258915,127.05,127.0,2.41658376]
[1767312175696,2.47678698,127.04,126.97,2.41657017]
[1767312176808,0.05738006,127.02,126.99,0.05243284]
[1767312181617,2.47678698,127.06,126.99,2.46756485]
[1767312181805,2.47678698,127.06,127.0,2.35775195]
[1767312182410,2.47678698,127.1,127.02,2.35722832]
[1767312182618,2.53293737,127.07,127.05,0.05779678]
[1767312183107,2.53293737,127.07,127.02,2.35722832]
[1767312184015,2.53293737,127.07,127.03,0.04967825]
[1767312191118,2.47678698,127.05,127.03,0.04967825]
[1767312191516,2.47678698,127.05,127.0,2.35620142]
[1767312192720,0.05455766,127.04,127.01,0.05127192]
[1767312193117,2.53134464,127.04,127.01,0.05127192]
[1767312198427,1.54258915,127.03,127.01,0.05127192]
[1767312198620,4.07393379,127.04,127.01,0.05127192]
[1767312200220,2.53134464,127.04,127.01,0.05127192]
[1767312202730,2.53134464,127.04,126.96,27.73991747]
[1767312202731,2.47678698,127.02,126.96,11.82268272]
[1767312202919,4.01937613,127.01,126.96,11.82268272]
[1767312203729,0.05461934,127.0,126.97,0.05088537]
[1767312214229,2.5681431,127.0,126.97,0.05088537]
[1767312215831,2.5681431,127.0,126.96,9.27209793]
[1767312216834,2.5681431,127.0,126.97,0.04972793]
[1767312218126,2.5681431,127.0,126.96,9.27209793]
[1767312219327,2.5681431,127.0,126.97,0.05118537]
[1767312221434,2.5681431,127.0,126.96,9.27209793]
[1767312222336,2.5681431,127.0,126.97,0.0535402]
[1767312222528,2.5681431,127.0,126.96,6.79013715]
[1767312224942,2.51352376,126.99,126.96,6.79013715]
[1767312225128,2.51352376,126.99,126.92,1.3695665]
[1767312225328,4.98695225,126.97,126.89,2.44529688]
[1767312225536,0.05486986,126.94,126.89,3.8162122]
[1767312226533,2.56839362,126.94,126.89,2.44529688]
[1767312226733,2.56839362,126.94,126.87,3.81653631]
[1767312226934,2.56839362,126.94,126.87,2.44529688]
[1767312227735,2.51352376,126.92,126.85,2.44529688]
[1767312227945,0.05139586,126.9,126.85,2.44529688]
[1767312229232,4.92920406,127.02,126.85,2.44529688]
[1767312229440,2.51352376,127.05,126.96,2.44529688]
[1767312229637,2.51352376,127.04,126.96,2.44529688]
[1767312229837,2.51352376,127.02,126.94,2.44529688]
[1767312230140,2.51352376,127.02,126.91,2.44529688]
[1767312230341,7.22114959,127.07,126.91,2.44529688]
[1767312230342,2.56547788,126.98,126.91,2.44529688]
[1767312232343,2.51352376,126.97,126.88,2.44529688]
[1767312232540,0.05891141,126.94,126.88,2.44529688]
[1767312232838,0.05891141,126.94,126.9,2.44529688]
[1767312233045,2.51352376,127.02,126.94,2.44529688]
[1767312233240,2.51352376,127.06,126.96,2.44529688]
[1767312234046,0.0599422,127.02,127.0,0.05331949]
[1767312234441,4.80546929,127.07,127.0,2.43947024]
[1767312235038,7.16211328,127.07,127.0,2.43947024]
[1767312235549,0.05765319,127.05,127.0,2.43947024]
[1767312241256,2.41429718,127.05,127.0,0.05331949]
[1767312244965,0.05765319,127.05,127.0,2.43947024]
[1767312247672,2.35664399,127.11,127.01,2.38615075]
[1767312247872,2.35664399,127.14,127.03,2.38615075]
[1767312248573,2.35664399,127.14,127.05,2.38615075]
[1767312248768,0.05490525,127.11,127.08,0.05103239]
[1767312249466,2.35664399,127.18,127.09,2.38615075]
[1767312249676,2.35664399,127.21,127.13,2.38615075]
[1767312250463,0.05073178,127.18,127.16,0.05595478]
[1767312252660,2.40737577,127.18,127.1,2.38615075]
[1767312252966,2.35664399,127.18,127.1,2.38615075]
[1767312253373,4.77232429,127.21,127.11,2.38615075]
[1767312253572,0.05565474,127.17,127.15,0.05105924]
[1767312253966,4.82797903,127.17,127.11,2.38615075]
[1767312254378,4.77232429,127.13,127.05,2.38615075]
[1767312255084,0.05833118,127.1,127.08,0.05859442]
[1767312257875,9.0746084,127.15,127.08,0.05859442]
[1767312258870,2.40841742,127.13,127.08,0.05859442]
[1767312259068,2.40841742,127.13,127.03,9.35544806]
[1767312259266,6.71796441,127.17,127.03,9.35544806]
[1767312259267,2.35664399,127.11,127.03,9.35544806]
[1767312259968,2.35664399,127.11,127.0,2.38615075]
[1767312260168,0.05716497,127.07,127.04,0.05886255]
[1767312261171,2.35664399,127.11,127.04,2.4450133]
[1767312261472,2.35664399,127.14,127.04,2.4450133]
[1767312261778,2.35664399,127.14,127.04,2.38615075]
[1767312262276,0.05019696,127.1,127.08,0.05956537]
[1767312263276,2.40684095,127.1,126.99,2.38615075]
[1767312263483,2.35664399,127.1,126.99,2.38615075]
[1767312263781,2.42539197,127.13,127.0,2.61037281]
[1767312264275,0.06014329,127.08,127.05,0.05517512]
[1767312264475,0.06014329,127.08,127.05,0.04993958]
[1767312265174,2.48553526,127.08,127.0,2.61037281]
[1767312265372,2.42539197,127.08,127.0,2.61037281]
[1767312266378,0.05835762,127.05,127.03,0.05972731]
[1767312269674,2.42539197,127.11,127.03,2.67010012]
[1767312269878,2.42539197,127.14,127.03,2.61037281]
[1767312270279,2.42539197,127.13,127.03,2.61037281]
[1767312270680,0.05207181,127.09,127.07,0.05679768]
[1767312272685,0.05207181,127.09,127.03,9.70477281]
[1767312273678,0.05207181,127.09,127.05,0.05811074]
[1767312275481,2.47746378,127.09,127.05,0.05811074]
[1767312277187,0.05207181,127.09,127.05,0.05811074]
[1767312282590,1.59590333,127.09,127.05,0.05811074]
[1767312284696,4.0212953,127.09,127.05,0.05811074]
[1767312287295,4.0212953,127.09,127.02,2.61037281]
[1767312291307,2.47746378,127.09,127.02,2.61037281]
[1767312291508,4.0212953,127.09,127.02,2.61037281]
[1767312292104,1.54383152,127.07,127.02,2.61037281]
[1767312292309,0.05436282,127.06,127.02,2.61037281]
[1767312294416,0.05436282,127.06,127.02,9.70547281]
[1767312295616,0.05436282,127.06,127.0,19.26182021]
[1767312295910,1.54383152,127.05,127.0,9.58565451]
[1767312298110,2.57327268,127.06,127.01,2.48955451]
[1767312299516,1.54383152,127.05,127.0,7.0961]
[1767312299713,1.54383152,127.05,126.99,2.48955451]
[1767312299906,0.05669474,127.03,126.99,2.48955451]
[1767312300106,0.05669474,127.03,126.99,9.58625451]
[1767312301316,0.05669474,127.03,126.99,2.48955451]
[1767312305115,4.06274138,127.06,127.0,2.48955451]
[1767312305315,2.51890986,127.08,127.0,2.48955451]
[1767312305514,1.54383152,127.06,127.0,2.48955451]
[1767312306223,0.05583989,127.04,127.02,0.05851764]
[1767312310726,1.59967141,127.04,127.02,0.05851764]
[1767312312026,0.05583989,127.04,127.02,0.05851764]
[1767312318524,2.57474975,127.04,127.02,0.05851764]
[1767312318729,4.06274138,127.02,126.95,2.48955451]
[1767312319730,0.05402918,127.0,126.95,2.48955451]
[1767312320625,2.51890986,127.07,126.99,2.48955451]
[1767312320830,4.06274138,127.07,126.99,2.48955451]
[1767312321418,0.06013339,127.04,127.02,0.05516195]
[1767312326628,4.063358,127.04,126.96,2.62478598]
[1767312326833,4.00322461,127.04,126.96,2.62478598]
[1767312327030,2.45939309,127.03,126.96,2.62478598]
[1767312327436,4.00322461,127.02,126.96,2.62478598]
[1767312327637,0.05560517,127.0,126.96,2.62478598]
[1767312328842,0.05560517,127.0,126.94,2.62478598]
[1767312333738,2.51499826,127.0,126.94,2.62478598]
[1767312333938,1.54383152,126.99,126.92,2.62478598]
[1767312334142,0.05372954,126.97,126.92,2.62478598]
[1767312335437,2.51312263,126.97,126.9,11.2705175]
[1767312335830,2.51312263,126.97,126.91,2.62478598]
[1767312336237,2.51312263,126.97,126.9,1.54383152]
[1767312336436,1.54383152,126.96,126.89,2.62478598]
[1767312336641,2.51973906,126.94,126.86,2.62478598]
[1767312336844,0.058813,126.91,126.86,2.62478598]
[1767312338540,0.058813,126.91,126.82,7.1061]
[1767312338541,2.45939309,126.89,126.81,6.70669806]
[1767312338742,0.05477928,126.86,126.8,2.62478598]
[1767312339047,0.05156899,126.84,126.8,2.62478598]
[1767312341035,0.05156899,126.84,126.76,7.5568461]
[1767312341036,2.51096208,126.84,126.76,10.18163208]
[1767312341237,0.05304418,126.81,126.76,10.18163208]
[1767312341643,2.51243727,126.81,126.76,7.5568461]
[1767312341947,2.45939309,126.79,126.71,2.62478598]
[1767312342140,0.06054908,126.76,126.72,2.62478598]
[1767312342339,2.51994217,126.76,126.69,2.62478598]
[1767312342552,2.51632953,126.74,126.66,2.62478598]
[1767312342848,0.05541288,126.71,126.65,1.37332281]
[1767312343246,0.05541288,126.71,126.66,2.62478598]
[1767312343753,2.51480597,126.71,126.61,2.62478598]
[1767312343953,0.05128239,126.67,126.63,1.37378363]
[1767312344150,0.05128239,126.67,126.63,3.99856961]
[1767312344455,2.45939309,126.71,126.63,1.37378363]
[1767312345243,0.05893624,126.68,126.66,0.04996988]
[1767312345644,0.05893624,126.68,126.61,2.62478598]
[1767312345947,0.05893624,126.68,126.62,2.62478598]
[1767312347051,2.45939309,126.77,126.64,2.62478598]
[1767312347438,6.76261203,126.9,126.61,1.37400059]
[1767312347439,2.45939309,126.82,126.67,2.62478598]
[1767312347943,0.0534235,126.76,126.73,0.05333067]
[1767312348144,2.45939309,126.82,126.7,2.62478598]
[1767312348452,0.05703537,126.76,126.73,0.05989146]
[1767312348656,0.05934085,126.76,126.73,0.05991671]
[1767312352965,2.45939309,126.81,126.73,2.68470269]
[1767312353264,2.45939309,126.81,126.73,2.62478598]
[1767312353958,0.05832384,126.78,126.76,0.05244318]
[1767312355058,0.05832384,126.78,126.7,2.61234712]
[1767312355252,2.66196277,126.79,126.7,2.61234712]
[1767312356065,2.71464433,126.76,126.64,2.61234712]
[1767312356259,2.66196277,126.76,126.64,2.61234712]
[1767312357056,0.05469121,126.71,126.69,0.02546308]
[1767312357263,0.05086901,126.71,126.69,0.02546308]
[1767312360256,2.66196277,126.79,126.7,2.61234712]
[1767312361469,0.05841342,126.76,126.73,0.06059637]
[1767312371274,2.72037619,126.76,126.73,0.06059637]
[1767312371475,2.72037619,126.76,126.7,2.61234712]
[1767312377478,2.72037619,126.76,126.67,2.61234712]
[1767312377681,0.05735628,126.73,126.67,2.61234712]
[1767312389795,2.63658779,126.73,126.65,2.61867722]
[1767312390001,0.05653797,126.7,126.65,2.61867722]
[1767312390800,0.05653797,126.7,126.66,2.61867722]
[1767312393102,2.42612106,126.75,126.67,2.61867722]
[1767312393305,2.57923151,126.76,126.67,2.61867722]
[1767312394301,0.0561391,126.73,126.7,0.05027192]
[1767312397496,2.42612106,126.78,126.7,2.66894914]
[1767312397694,2.57923151,126.79,126.7,2.61867722]
[1767312397892,2.57923151,126.79,126.72,2.61867722]
[1767312398495,0.05800237,126.77,126.74,0.05781375]
[1767312402093,2.63723388,126.77,126.7,2.61867722]
[1767312402300,2.57923151,126.77,126.7,2.61867722]
[1767312403308,0.05101701,126.75,126.72,0.05105247]
[1767312411404,2.63024852,126.75,126.72,0.05105247]
[1767312414713,2.63024852,126.75,126.68,9.65012478]
[1767312415416,1.55147211,126.74,126.68,2.53672478]
[1767312415614,4.27082856,126.74,126.68,2.53672478]
[1767312415917,0.05564863,126.72,126.68,2.53672478]
[1767312425415,2.71935645,126.76,126.68,2.53672478]
[1767312425617,1.55147211,126.77,126.69,1.55147211]
[1767312425924,1.55147211,126.77,126.7,2.53672478]
[1767312426514,0.05980322,126.75,126.72,0.05112236]
[1767312439526,2.71935645,126.8,126.73,2.53672478]
[1767312439731,2.71935645,126.82,126.74,2.53672478]
[1767312439926,4.27082856,126.82,126.74,2.53672478]
[1767312440120,4.27082856,126.82,126.75,2.53672478]
[1767312440627,1.60137161,126.8,126.77,0.06043961]
[1767312444335,2.61950557,126.79,126.73,2.68334562]
[1767312444927,1.55147211,126.78,126.73,2.68334562]
[1767312445434,0.05953918,126.77,126.74,0.05842571]
[1767312449736,1.55147211,126.76,126.7,2.68334562]
[1767312449938,1.55147211,126.74,126.7,2.68334562]
[1767312450725,0.05186709,126.73,126.7,2.68334562]
[1767312453442,0.05186709,126.73,126.67,2.68334562]
[1767312453443,1.55147211,126.72,126.67,2.68334562]
[1767312456941,0.05186709,126.73,126.67,2.68334562]
[1767312457338,1.55147211,126.72,126.67,2.68334562]
[1767312458545,2.47831937,126.73,126.67,2.68334562]
[1767312460050,2.61950557,126.72,126.67,2.68334562]
[1767312464554,2.42645228,126.69,126.63,6.00573958]
[1767312464740,0.05068886,126.67,126.64,2.68334562]
[1767312464942,2.61950557,126.7,126.64,2.68334562]
[1767312465138,2.42645228,126.71,126.64,2.68334562]
[1767312465444,2.42645228,126.71,126.64,9.79894562]
[1767312465751,2.42645228,126.73,126.65,2.68334562]
[1767312465955,0.06062712,126.7,126.68,0.05351784]
[1767312477361,0.06062712,126.7,126.65,2.68334562]
[1767312480263,2.68177317,126.7,126.65,2.68334562]
[1767312480664,5.10822545,126.7,126.65,2.68334562]
[1767312481359,2.68177317,126.7,126.65,2.68334562]
[1767312482659,2.68177317,126.7,126.63,7.1163]
[1767312482660,5.04759833,126.69,126.63,2.7359506]
[1767312482854,2.42645228,126.73,126.63,2.7359506]
[1767312483051,5.04759833,126.73,126.63,2.7359506]
[1767312483259,2.42645228,126.74,126.66,2.7359506]
[1767312483454,2.62114605,126.76,126.66,2.7359506]
[1767312483455,5.04759833,126.76,126.66,2.7359506]
[1767312483765,2.62114605,126.75,126.66,2.7359506]
[1767312483956,0.05898219,126.72,126.69,0.05155492]
[1767312484971,2.68012824,126.72,126.66,2.7359506]
[1767312485273,2.62114605,126.72,126.66,2.7359506]
[1767312485970,0.05946062,126.7,126.68,0.02180976]
[1767312486974,2.68060667,126.7,126.64,2.7359506]
[1767312493878,2.62114605,126.69,126.62,2.7359506]
[1767312494086,0.05247541,126.67,126.62,2.7359506]
[1767312494886,2.67362146,126.67,126.62,2.7359506]
[1767312495089,2.67362146,126.67,126.61,6.1463635]
[1767312495489,2.67362146,126.67,126.61,8.8823141]
[1767312496291,2.67362146,126.67,126.61,2.7359506]
[1767312498199,2.67362146,126.67,126.59,2.7359506]
[1767312498388,0.05652063,126.64,126.59,2.7359506]
[1767312499384,2.67766668,126.64,126.58,1.37424476]
[1767312501194,2.67766668,126.64,126.57,2.7359506]
[1767312501599,2.62114605,126.63,126.57,2.7359506]
[1767312501802,0.05120867,126.61,126.57,2.7359506]
[1767312502202,0.05120867,126.61,126.55,164.30948214]
[1767312502203,0.05120867,126.61,126.55,174.16603274]
[1767312502399,0.05120867,126.61,126.56,2.7359506]
[1767312503199,2.67235472,126.61,126.53,2.7359506]
[1767312503400,0.05108411,126.58,126.53,2.7359506]
[1767312503584,2.68630649,126.63,126.54,2.66812284]
[1767312504196,2.68630649,126.63,126.55,2.72412694]
[1767312504698,0.05240921,126.6,126.58,0.05108411]
[1767312506091,2.68630649,126.66,126.58,2.77521105]
[1767312506396,2.68630649,126.68,126.59,2.72412694]
[1767312506584,5.11275877,126.68,126.6,2.72412694]
[1767312506785,2.68630649,126.67,126.57,2.72412694]
[1767312506986,0.05399403,126.63,126.61,0.05825298]
[1767312507190,0.05708726,126.63,126.61,0.05362681]
[1767312507794,0.05708726,126.63,126.57,2.72412694]
[1767312508792,0.05708726,126.63,126.59,0.04986651]
[1767312508994,2.74339375,126.63,126.59,0.04986651]
[1767312509190,2.74339375,126.63,126.55,2.72412694]
[1767312509406,2.68630649,126.63,126.55,2.72412694]
[1767312510109,0.05832045,126.6,126.55,2.72412694]
[1767312510699,0.05832045,126.6,126.56,2.72412694]
[1767312511099,2.68630649,126.64,126.57,2.72412694]
[1767312511301,2.68630649,126.64,126.57,9.84362694]
[1767312512204,0.05503541,126.62,126.59,0.04989231]
[1767312514005,2.68630649,126.68,126.59,2.77401925]
[1767312514305,117.89752941,126.69,126.61,2.72412694]
[1767312515113,0.05092598,126.66,126.64,0.05954788]
[1767312517112,117.89752941,126.69,126.64,0.05954788]
[1767312517319,12.22385877,126.73,126.64,2.78367482]
[1767312517506,2.68630649,126.72,126.64,2.72412694]
[1767312518112,0.05493364,126.69,126.67,0.05832687]
[1767312521513,0.05493364,126.69,126.64,2.72412694]
[1767312522409,0.05493364,126.69,126.65,0.05286096]
[1767312522606,4.294656,126.69,126.65,0.05286096]
[1767312526515,2.68630649,126.68,126.61,7.1171]
[1767312526717,2.68630649,126.68,126.61,9.84122694]
[1767312527517,0.05503469,126.66,126.63,0.05309401]
[1767312531516,2.68630649,126.71,126.63,2.77722095]
[1767312531718,2.68630649,126.71,126.64,2.72412694]
[1767312532223,1.55341587,126.7,126.64,2.72412694]
[1767312532414,0.05798855,126.68,126.66,0.05744701]
[1767312533415,1.61140442,126.68,126.62,2.6385037]
[1767312533624,1.55341587,126.68,126.62,2.6385037]
[1767312534417,0.05027945,126.66,126.64,0.05064363]
[1767312543645,2.5573727,126.66,126.64,0.05064363]
[1767312543946,2.5573727,126.66,126.61,9.7558037]
[1767312544146,0.05027945,126.66,126.61,9.7558037]
[1767312544445,0.05027945,126.66,126.62,2.6385037]
[1767312547644,4.06050912,126.72,126.65,2.6385037]
[1767312548148,1.55341587,126.7,126.65,2.6385037]
[1767312548847,0.05808997,126.69,126.66,0.05031751]
[1767312550745,1.55341587,126.68,126.61,9.7559037]
[1767312550955,1.55341587,126.66,126.61,9.7559037]
[1767312551948,0.05194045,126.65,126.61,9.7559037]
[1767312553845,0.05194045,126.65,126.62,2.6385037]
[1767312563155,0.05194045,126.65,126.6,2.6385037]
[1767312572262,2.56718756,126.65,126.6,2.6385037]
[1767312580773,4.06866298,126.64,126.57,2.63656809]
[1767312580971,0.05488066,126.62,126.57,2.63656809]
[1767312583263,2.57012777,126.62,126.55,2.63656809]
[1767312583462,0.05590649,126.6,126.55,2.63656809]
[1767312583968,2.5711536,126.6,126.55,2.63656809]
[1767312584166,2.5711536,126.6,126.54,7.121]
[1767312584377,2.5711536,126.6,126.55,2.63656809]
[1767312587374,2.5711536,126.6,126.52,7.77260929]
[1767312587675,0.05207166,126.57,126.52,7.77260929]
[1767312589383,2.56731877,126.57,126.52,7.77260929]
[1767312591483,9.68731877,126.57,126.52,7.77260929]
[1767312594484,2.65362054,126.56,126.52,7.77260929]
[1767312596977,9.77482054,126.55,126.49,2.49001087]
[1767312597176,0.0559124,126.53,126.49,2.49001087]
[1767312597377,128.49089575,126.6,126.51,2.49001087]
[1767312597977,9.77092054,126.62,126.53,2.49001087]
[1767312598384,0.05281542,126.59,126.56,0.05033171]
[1767312600992,0.05281542,126.59,126.56,2.54034258]
[1767312601587,2.65362054,126.66,126.57,2.49001087]
[1767312602698,0.05879844,126.63,126.6,0.05782222]
[1767312609896,2.71241898,126.63,126.6,0.05782222]
[1767312610093,2.71241898,126.63,126.57,2.49001087]
[1767312610294,2.71241898,126.63,126.53,2.49001087]
[1767312610498,2.65362054,126.63,126.53,2.49001087]
[1767312610697,2.65362054,126.61,126.53,2.49001087]
[1767312611097,0.0520684,126.58,126.56,0.0509056]
[1767312611800,0.0520684,126.58,126.53,2.49001087]
[1767312613200,2.65362054,126.64,126.53,2.49001087]
[1767312614203,0.05601003,126.6,126.57,0.0520684]
[1767312615904,2.70963057,126.6,126.52,2.49001087]
[1767312616100,2.65362054,126.6,126.52,2.49001087]
[1767312616807,0.05343992,126.57,126.52,2.49001087]
[1767312620802,2.70706046,126.57,126.51,7.1229]
[1767312621109,2.70706046,126.57,126.51,9.61291087]
[1767312621408,2.70706046,126.57,126.51,2.49001087]
[1767312622394,0.05343992,126.57,126.51,9.61281087]
[1767312622599,0.05343992,126.57,126.52,2.49001087]
[1767312626227,2.70229598,126.57,126.51,7.1228]
[1767312626414,2.70229598,126.57,126.51,9.83884018]
[1767312626815,2.70229598,126.57,126.51,2.71604018]
[1767312627014,0.05343992,126.57,126.51,2.71604018]
[1767312628824,0.05343992,126.57,126.51,9.83894018]
[1767312629021,0.05343992,126.57,126.52,2.71604018]
[1767312629220,2.70229598,126.57,126.48,2.71604018]
[1767312629529,0.05198898,126.54,126.48,2.71604018]
[1767312630622,0.05198898,126.54,126.51,2.71604018]
[1767312630820,2.64885606,126.57,126.51,2.71604018]
[1767312631820,0.05222567,126.55,126.53,0.05040775]
[1767312633929,2.64885606,126.6,126.53,2.76644793]
[1767312634128,2.64885606,126.6,126.53,2.71604018]
[1767312634928,0.05193923,126.58,126.55,0.05917654]
[1767312647930,0.05193923,126.58,126.55,2.77521672]
[1767312654737,4.11799845,126.58,126.51,2.70266637]
[1767312654935,4.06605922,126.58,126.51,2.70266637]
[1767312655842,0.05866215,126.56,126.53,2.74770448]
[1767312656436,0.05866215,126.56,126.53,0.04503811]
[1767312661038,0.05866215,126.56,126.53,2.74770448]
[1767312661241,1.55620282,126.59,126.53,2.74770448]
[1767312661436,1.55620282,126.59,126.54,2.70266637]
[1767312662345,0.05082945,126.58,126.54,2.70266637]
[1767312662740,4.06605922,126.63,126.56,2.70266637]
[1767312662944,134.38438807,126.64,126.59,2.70266637]
[1767312663545,4.06605922,126.65,126.59,2.70266637]
[1767312663845,4.06605922,126.65,126.61,0.05226632]
[1767312664054,1.55620282,126.65,126.61,0.05226632]
[1767312664845,0.0500937,126.64,126.61,0.05226632]
[1767312665349,100.24851604,126.69,126.61,2.75493269]
[1767312665553,214.65797823,126.79,126.61,2.70266637]
[1767312665554,2.5098564,126.76,126.61,2.70266637]
[1767312665746,4.06605922,126.7,126.61,2.70266637]
[1767312666457,0.05071134,126.67,126.64,0.05261762]